[Event "Deloitte NK 2021"]
[Site "Hoogeveen, Netherlands"]
[Date "2021.10.15"]
[Round "1.1"]
[White "Lai, Hing Ting"]
[Black "Hilwerda, Jonas"]
[Result "1-0"]
[TimeControl "90min/40moves + 30min + 30sec/move"]
[WhiteElo "2439"]
[BlackElo "2240"]

1. d4 {[%clk 01:30:58]} {[%emt 00:00:02]} Nf6 {[%clk 01:30:48]} {[%emt
00:00:12]} 2. c4 {[%clk 01:31:20]} {[%emt 00:00:08]} g6 {[%clk 01:31:11]}
{[%emt 00:00:07]} 3. Nf3 {[%clk 01:31:40]} {[%emt 00:00:10]} Bg7 {[%clk
01:31:34]} {[%emt 00:00:06]} 4. g3 {[%clk 01:32:06]} {[%emt 00:00:05]} O-O
{[%clk 01:31:59]} {[%emt 00:00:05]} 5. Bg2 {[%clk 01:32:32]} {[%emt 00:00:04]}
d6 {[%clk 01:32:24]} {[%emt 00:00:05]} 6. Nc3 {[%clk 01:32:48]} {[%emt
00:00:15]} Nc6 {[%clk 01:32:46]} {[%emt 00:00:07]} 7. O-O {[%clk 01:33:09]}
{[%emt 00:00:09]} e5 {[%clk 01:33:11]} {[%emt 00:00:05]} 8. d5 {[%clk
01:33:19]} {[%emt 00:00:20]} Nb8 {[%clk 01:33:35]} {[%emt 00:00:06]} 9. Ne1
{[%clk 01:33:00]} {[%emt 00:00:49]} a5 {[%clk 01:33:19]} {[%emt 00:00:46]} 10.
e4 {[%clk 01:32:50]} {[%emt 00:00:41]} Na6 {[%clk 01:33:20]} {[%emt 00:00:28]}
11. Rb1 {[%clk 01:31:59]} {[%emt 00:01:22]} Nc5 {[%clk 01:24:47]} {[%emt
00:09:02]} 12. b3 {[%clk 01:31:02]} {[%emt 00:01:27]} Nfd7 {[%clk 01:10:50]}
{[%emt 00:14:26]} 13. a3 {[%clk 01:26:44]} {[%emt 00:04:50]} f5 {[%clk
01:07:54]} {[%emt 00:03:26]} 14. exf5 {[%clk 01:25:10]} {[%emt 00:02:04]} gxf5
{[%clk 01:07:49]} {[%emt 00:00:34]} 15. b4 {[%clk 01:25:16]} {[%emt 00:00:24]}
Na6 {[%clk 01:04:46]} {[%emt 00:03:33]} 16. Ne2 {[%clk 01:18:26]} {[%emt
00:07:21]} Nf6 {[%clk 00:44:48]} {[%emt 00:20:28]} 17. f4 {[%clk 01:15:45]}
{[%emt 00:03:11]} e4 {[%clk 00:34:43]} {[%emt 00:10:35]} 18. Nc2 {[%clk
01:11:29]} {[%emt 00:04:46]} axb4 {[%clk 00:33:51]} {[%emt 00:01:22]} 19. axb4
{[%clk 01:11:44]} {[%emt 00:00:15]} c5 {[%clk 00:33:38]} {[%emt 00:00:42]} 20.
dxc6 {[%clk 01:09:27]} {[%emt 00:02:48]} bxc6 {[%clk 00:34:06]} {[%emt
00:00:01]} 21. h3 {[%clk 01:04:13]} {[%emt 00:05:45]} Be6 {[%clk 00:27:44]}
{[%emt 00:06:51]} 22. Ncd4 {[%clk 01:00:18]} {[%emt 00:04:26]} Bd7 {[%clk
00:19:46]} {[%emt 00:08:27]} 23. b5 {[%clk 00:58:40]} {[%emt 00:02:09]} cxb5
{[%clk 00:19:05]} {[%emt 00:01:11]} 24. Nxb5 {[%clk 00:58:36]} {[%emt
00:00:35]} d5 {[%clk 00:16:32]} {[%emt 00:03:02]} 25. Ba3 {[%clk 00:50:20]}
{[%emt 00:08:46]} dxc4 {[%clk 00:11:13]} {[%emt 00:05:49]} 26. Qc1 {[%clk
00:45:42]} {[%emt 00:05:08]} Bxb5 {[%clk 00:09:22]} {[%emt 00:02:22]} 27. Rxb5
{[%clk 00:43:26]} {[%emt 00:02:45]} Qd3 {[%clk 00:09:50]} {[%emt 00:00:02]} 28.
Bxf8 {[%clk 00:42:02]} {[%emt 00:01:54]} Rxf8 {[%clk 00:08:25]} {[%emt
00:01:55]} 29. Re1 {[%clk 00:36:19]} {[%emt 00:06:13]} Nd5 {[%clk 00:06:43]}
{[%emt 00:02:12]} 30. Rd1 {[%clk 00:34:40]} {[%emt 00:02:09]} Qxe2 {[%clk
00:07:11]} {[%emt 00:00:02]} 31. Rbxd5 {[%clk 00:34:22]} {[%emt 00:00:48]} c3
{[%clk 00:03:50]} {[%emt 00:03:52]} 32. Rd7 {[%clk 00:32:28]} {[%emt 00:02:23]}
Nc5 {[%clk 00:02:50]} {[%emt 00:01:30]} 33. Rxg7+ {[%clk 00:28:41]} {[%emt
00:04:17]} Kxg7 {[%clk 00:03:19]} {[%emt 00:00:01]} 34. Qxc3+ {[%clk 00:29:10]}
{[%emt 00:00:01]} Kg8 {[%clk 00:02:26]} {[%emt 00:01:23]} 35. Ra1 {[%clk
00:27:11]} {[%emt 00:02:29]} Nd3 {[%clk 00:01:56]} {[%emt 00:01:00]} 36. Qc4+
{[%clk 00:27:21]} {[%emt 00:00:20]} Rf7 {[%clk 00:01:22]} {[%emt 00:01:04]} 37.
Ra8+ {[%clk 00:25:53]} {[%emt 00:01:58]} Kg7 {[%clk 00:01:52]} 38. Qd4+ {[%clk
00:25:58]} {[%emt 00:00:25]} Rf6 {[%clk 00:01:29]} {[%emt 00:00:53]} 39. Ra7+
{[%clk 00:25:48]} {[%emt 00:00:39]} Kg6 {[%clk 00:00:37]} {[%emt 00:01:23]} 40.
Qd7 {[%clk 00:26:02]} {[%emt 00:00:15]} h6 {[%clk 00:00:33]} {[%emt 00:00:34]}
41. Qg7+ {[%clk 00:26:00]} {[%emt 00:00:32]} Kh5 {[%clk 00:00:58]} {[%emt
00:00:05]} 42. Qxf6 {[%clk 00:25:50]} {[%emt 00:00:40]} 1-0

[Event "Deloitte NK 2021"]
[Site "Hoogeveen, Netherlands"]
[Date "2021.10.15"]
[Round "1.2"]
[White "Hoogendoorn, Joost"]
[Black "Zwirs, Nico"]
[Result "0-1"]
[TimeControl "90min/40moves + 30min + 30sec/move"]
[WhiteElo "2482"]
[BlackElo "2439"]

1. e4 {[%clk 01:30:50]} {[%emt 00:00:09]} c5 {[%clk 01:30:55]} {[%emt
00:00:06]} 2. Nf3 {[%clk 01:31:04]} {[%emt 00:00:16]} d6 {[%clk 01:31:16]}
{[%emt 00:00:08]} 3. Nc3 {[%clk 01:30:46]} {[%emt 00:00:49]} Nf6 {[%clk
01:31:00]} {[%emt 00:00:46]} 4. g3 {[%clk 01:30:21]} {[%emt 00:00:55]} g6
{[%clk 01:27:42]} {[%emt 00:03:48]} 5. Bg2 {[%clk 01:29:06]} {[%emt 00:01:45]}
Bg7 {[%clk 01:27:19]} {[%emt 00:00:53]} 6. d4 {[%clk 01:19:13]} {[%emt
00:10:24]} cxd4 {[%clk 01:27:35]} {[%emt 00:00:13]} 7. Nxd4 {[%clk 01:19:38]}
{[%emt 00:00:05]} O-O {[%clk 01:27:57]} {[%emt 00:00:08]} 8. h3 {[%clk
01:19:30]} {[%emt 00:00:38]} Nc6 {[%clk 01:20:05]} {[%emt 00:08:22]} 9. Nde2
{[%clk 01:13:52]} {[%emt 00:06:09]} Rb8 {[%clk 01:19:17]} {[%emt 00:01:18]} 10.
O-O {[%clk 01:11:20]} {[%emt 00:03:02]} b5 {[%clk 01:17:49]} {[%emt 00:01:56]}
11. a3 {[%clk 01:09:42]} {[%emt 00:02:10]} a5 {[%clk 01:14:53]} {[%emt
00:03:25]} 12. Be3 {[%clk 01:03:02]} {[%emt 00:07:10]} b4 {[%clk 01:11:37]}
{[%emt 00:03:46]} 13. axb4 {[%clk 01:03:06]} {[%emt 00:00:27]} axb4 {[%clk
01:12:05]} {[%emt 00:00:01]} 14. Nd5 {[%clk 01:02:26]} {[%emt 00:01:11]} Nd7
{[%clk 01:11:11]} {[%emt 00:01:23]} 15. Nd4 {[%clk 00:55:52]} {[%emt 00:07:04]}
Bxd4 {[%clk 01:07:36]} {[%emt 00:04:06]} 16. Bxd4 {[%clk 00:55:35]} {[%emt
00:00:47]} e6 {[%clk 01:07:51]} {[%emt 00:00:15]} 17. Nxb4 {[%clk 00:23:18]}
{[%emt 00:32:47]} Nxb4 {[%clk 00:57:29]} {[%emt 00:10:51]} 18. Bc3 {[%clk
00:23:37]} {[%emt 00:00:11]} Qb6 {[%clk 00:27:10]} {[%emt 00:30:49]} 19. Ra4
{[%clk 00:21:33]} {[%emt 00:02:35]} Na6 {[%clk 00:24:31]} {[%emt 00:03:08]} 20.
Rd4 {[%clk 00:21:17]} {[%emt 00:00:47]} Qc7 {[%clk 00:19:42]} {[%emt 00:05:18]}
21. Rxd6 {[%clk 00:20:04]} {[%emt 00:01:43]} Nac5 {[%clk 00:19:40]} {[%emt
00:00:32]} 22. Qd2 {[%clk 00:16:37]} {[%emt 00:03:57]} Nb7 {[%clk 00:11:44]}
{[%emt 00:08:26]} 23. Qh6 {[%clk 00:15:23]} {[%emt 00:01:45]} e5 {[%clk
00:07:02]} {[%emt 00:05:12]} 24. Rd5 {[%clk 00:14:16]} {[%emt 00:01:37]} Nbc5
{[%clk 00:06:36]} {[%emt 00:00:56]} 25. f4 {[%clk 00:13:57]} {[%emt 00:00:48]}
Na4 {[%clk 00:04:19]} {[%emt 00:02:47]} 26. Ba5 {[%clk 00:06:53]} {[%emt
00:07:35]} Qxc2 {[%clk 00:04:14]} {[%emt 00:00:34]} 27. f5 {[%clk 00:07:16]}
{[%emt 00:00:07]} Rxb2 {[%clk 00:03:49]} {[%emt 00:00:56]} 28. Bd2 {[%clk
00:07:35]} {[%emt 00:00:11]} Nab6 {[%clk 00:02:20]} {[%emt 00:01:58]} 29. Rc1
{[%clk 00:05:04]} {[%emt 00:03:02]} Rb1 {[%clk 00:02:31]} {[%emt 00:00:19]} 30.
Rb5 {[%clk 00:04:21]} {[%emt 00:01:13]} Rxc1+ {[%clk 00:02:17]} {[%emt
00:00:44]} 31. Bxc1 {[%clk 00:04:49]} {[%emt 00:00:01]} Qc6 {[%clk 00:02:04]}
{[%emt 00:00:43]} 32. Rb3 {[%clk 00:01:34]} {[%emt 00:03:46]} Bb7 {[%clk
00:02:19]} {[%emt 00:00:15]} 33. Bg5 {[%clk 00:00:51]} {[%emt 00:01:13]} gxf5
{[%clk 00:01:59]} {[%emt 00:00:49]} 34. Qh4 {[%clk 00:00:37]} {[%emt 00:00:44]}
fxe4 {[%clk 00:01:21]} {[%emt 00:01:08]} 35. Bh6 {[%clk 00:00:33]} {[%emt
00:00:35]} Re8 {[%clk 00:01:39]} {[%emt 00:00:10]} 36. Rb4 {[%clk 00:00:36]}
{[%emt 00:00:29]} Qg6 {[%clk 00:01:28]} {[%emt 00:00:40]} 37. Bxe4 {[%clk
00:00:31]} {[%emt 00:00:36]} Bxe4 {[%clk 00:01:52]} {[%emt 00:00:06]} 38. Rxe4
{[%clk 00:01:00]} {[%emt 00:00:01]} f5 {[%clk 00:01:31]} {[%emt 00:00:50]} 39.
Re1 {[%clk 00:01:22]} {[%emt 00:00:09]} e4 {[%clk 00:01:32]} {[%emt 00:00:29]}
40. Kh1 {[%clk 00:01:06]} {[%emt 00:00:46]} Nd5 {[%clk 00:01:03]} {[%emt
00:00:58]} 41. g4 {[%clk 00:01:04]} {[%emt 00:00:33]} f4 {[%clk 00:00:42]}
{[%emt 00:00:51]} 42. Ra1 {[%emt 00:01:32]} 0-1

[Event "Deloitte NK 2021"]
[Site "Hoogeveen, Netherlands"]
[Date "2021.10.15"]
[Round "1.3"]
[White "Ten Hertog, Hugo"]
[Black "Timmermans, Mark"]
[Result "1-0"]
[TimeControl "90min/40moves + 30min + 30sec/move"]
[WhiteElo "2519"]
[BlackElo "2385"]

1. e4 {[%clk 01:30:52]} {[%emt 00:00:07]} e5 {[%clk 01:30:52]} {[%emt
00:00:09]} 2. Nf3 {[%clk 01:31:18]} {[%emt 00:00:05]} Nc6 {[%clk 01:31:11]}
{[%emt 00:00:10]} 3. Bb5 {[%clk 01:31:38]} {[%emt 00:00:10]} a6 {[%clk
01:31:04]} {[%emt 00:00:38]} 4. Ba4 {[%clk 01:32:03]} {[%emt 00:00:04]} Nge7
{[%clk 01:31:30]} {[%emt 00:00:04]} 5. O-O {[%clk 01:31:14]} {[%emt 00:01:19]}
Ng6 {[%clk 01:31:57]} {[%emt 00:00:03]} 6. d4 {[%clk 01:27:10]} {[%emt
00:04:34]} exd4 {[%clk 01:20:58]} {[%emt 00:11:29]} 7. Nxd4 {[%clk 01:25:29]}
{[%emt 00:02:11]} Nxd4 {[%clk 01:14:10]} {[%emt 00:07:18]} 8. Qxd4 {[%clk
01:25:53]} {[%emt 00:00:06]} b5 {[%clk 01:11:34]} {[%emt 00:03:06]} 9. Bb3
{[%clk 01:26:16]} {[%emt 00:00:07]} Bb7 {[%clk 01:11:59]} {[%emt 00:00:05]} 10.
Qc3 {[%clk 00:53:28]} {[%emt 00:33:18]} f6 {[%clk 00:50:07]} {[%emt 00:22:22]}
11. f4 {[%clk 00:41:22]} {[%emt 00:12:35]} Qe7 {[%clk 00:45:48]} {[%emt
00:04:50]} 12. Qg3 {[%clk 00:35:05]} {[%emt 00:06:47]} O-O-O {[%clk 00:41:21]}
{[%emt 00:04:58]} 13. Re1 {[%clk 00:27:16]} {[%emt 00:08:18]} f5 {[%clk
00:32:33]} {[%emt 00:09:18]} 14. Nc3 {[%clk 00:18:00]} {[%emt 00:09:45]} Qh4
{[%clk 00:25:35]} {[%emt 00:07:29]} 15. exf5 {[%clk 00:13:07]} {[%emt
00:05:24]} Qxg3 {[%clk 00:25:54]} {[%emt 00:00:10]} 16. hxg3 {[%clk 00:13:34]}
{[%emt 00:00:03]} Ne7 {[%clk 00:25:52]} {[%emt 00:00:31]} 17. Be3 {[%clk
00:10:35]} {[%emt 00:03:29]} Nxf5 {[%clk 00:26:07]} {[%emt 00:00:15]} 18. Bf2
{[%clk 00:11:02]} {[%emt 00:00:03]} Bb4 {[%clk 00:20:38]} {[%emt 00:06:00]} 19.
a4 {[%clk 00:10:26]} {[%emt 00:01:06]} Bxc3 {[%clk 00:20:27]} {[%emt 00:00:41]}
20. bxc3 {[%clk 00:10:53]} {[%emt 00:00:04]} d5 {[%clk 00:20:40]} {[%emt
00:00:17]} 21. axb5 {[%clk 00:09:32]} {[%emt 00:01:51]} axb5 {[%clk 00:21:05]}
{[%emt 00:00:05]} 22. Re5 {[%clk 00:09:53]} {[%emt 00:00:09]} g6 {[%clk
00:20:15]} {[%emt 00:01:19]} 23. Rae1 {[%clk 00:09:20]} {[%emt 00:01:02]} h5
{[%clk 00:20:10]} {[%emt 00:00:36]} 24. Re6 {[%clk 00:07:52]} {[%emt 00:01:58]}
Rhg8 {[%clk 00:18:52]} {[%emt 00:01:48]} 25. R1e5 {[%clk 00:07:42]} {[%emt
00:00:40]} Rd6 {[%clk 00:13:46]} {[%emt 00:05:37]} 26. Rxd6 {[%clk 00:07:15]}
{[%emt 00:00:56]} cxd6 {[%clk 00:14:12]} {[%emt 00:00:04]} 27. Bxd5 {[%clk
00:07:09]} {[%emt 00:00:36]} Bxd5 {[%clk 00:14:39]} {[%emt 00:00:03]} 28. Rxd5
{[%clk 00:07:36]} {[%emt 00:00:04]} Kd7 {[%clk 00:15:04]} {[%emt 00:00:05]} 29.
Rxb5 {[%clk 00:07:50]} {[%emt 00:00:16]} Rc8 {[%clk 00:15:08]} {[%emt
00:00:25]} 30. Rb3 {[%clk 00:05:19]} {[%emt 00:03:01]} Ke6 {[%clk 00:15:35]}
{[%emt 00:00:03]} 31. Kf1 {[%clk 00:05:34]} {[%emt 00:00:15]} Ra8 {[%clk
00:14:27]} {[%emt 00:01:39]} 32. c4 {[%clk 00:05:30]} {[%emt 00:00:33]} Rc8
{[%clk 00:12:05]} {[%emt 00:02:52]} 33. Rc3 {[%clk 00:05:41]} {[%emt 00:00:19]}
Kf7 {[%clk 00:11:46]} {[%emt 00:00:50]} 34. Ke2 {[%clk 00:05:56]} {[%emt
00:00:13]} d5 {[%clk 00:10:57]} {[%emt 00:01:21]} 35. c5 {[%clk 00:02:57]}
{[%emt 00:03:29]} d4 {[%clk 00:07:34]} {[%emt 00:03:52]} 36. Rc4 {[%clk
00:03:16]} {[%emt 00:00:11]} Ke6 {[%clk 00:08:01]} {[%emt 00:00:04]} 37. Kd3
{[%clk 00:02:43]} {[%emt 00:01:03]} Kd5 {[%clk 00:08:11]} {[%emt 00:00:19]} 38.
Bxd4 {[%clk 00:02:09]} {[%emt 00:01:04]} Nxg3 {[%clk 00:06:48]} {[%emt
00:01:53]} 39. Ra4 {[%clk 00:01:45]} {[%emt 00:00:52]} Rd8 {[%clk 00:05:40]}
{[%emt 00:01:41]} 40. Ra6 {[%clk 00:01:27]} {[%emt 00:00:47]} Nf5 {[%clk
00:06:06]} {[%emt 00:00:03]} 41. c4# {[%clk 00:01:19]} {[%emt 00:00:05]} 1-0

[Event "Deloitte NK 2021"]
[Site "Hoogeveen, Netherlands"]
[Date "2021.10.15"]
[Round "1.4"]
[White "Van der Lende, Ilias"]
[Black "Burg, Twan"]
[Result "1-0"]
[TimeControl "90min/40moves + 30min + 30sec/move"]
[WhiteElo "2388"]
[BlackElo "2514"]

1. e4 {[%clk 01:30:52]} {[%emt 00:00:06]} e5 {[%clk 01:30:46]} {[%emt
00:00:12]} 2. Nf3 {[%clk 01:31:12]} {[%emt 00:00:12]} Nc6 {[%clk 01:30:54]}
{[%emt 00:00:22]} 3. Bc4 {[%clk 01:31:31]} {[%emt 00:00:12]} Nf6 {[%clk
01:31:08]} {[%emt 00:00:16]} 4. d3 {[%clk 01:31:56]} {[%emt 00:00:06]} Bc5
{[%clk 01:27:16]} {[%emt 00:04:21]} 5. O-O {[%clk 01:30:44]} {[%emt 00:01:42]}
O-O {[%clk 01:27:28]} {[%emt 00:00:18]} 6. c3 {[%clk 01:30:47]} {[%emt
00:00:27]} a5 {[%clk 01:09:58]} {[%emt 00:17:59]} 7. d4 {[%clk 01:27:37]}
{[%emt 00:03:41]} Ba7 {[%clk 01:06:57]} {[%emt 00:03:30]} 8. dxe5 {[%clk
01:21:13]} {[%emt 00:06:54]} Nxe4 {[%clk 01:05:34]} {[%emt 00:01:52]} 9. Bd5
{[%clk 01:12:30]} {[%emt 00:09:14]} Nc5 {[%clk 01:04:36]} {[%emt 00:01:29]} 10.
Bg5 {[%clk 01:12:08]} {[%emt 00:00:51]} Qe8 {[%clk 01:04:14]} {[%emt 00:00:52]}
11. Re1 {[%clk 01:11:58]} {[%emt 00:00:41]} Ne7 {[%clk 01:00:59]} {[%emt
00:03:45]} 12. Na3 {[%clk 01:00:07]} {[%emt 00:12:21]} h6 {[%clk 00:53:01]}
{[%emt 00:08:28]} 13. Nb5 {[%clk 00:42:04]} {[%emt 00:18:32]} Nxd5 {[%clk
00:46:44]} {[%emt 00:06:46]} 14. Nxa7 {[%clk 00:41:18]} {[%emt 00:01:17]} Nxc3
{[%clk 00:40:11]} {[%emt 00:07:03]} 15. bxc3 {[%clk 00:32:57]} {[%emt
00:08:51]} Rxa7 {[%clk 00:40:27]} {[%emt 00:00:13]} 16. Qd4 {[%clk 00:32:32]}
{[%emt 00:00:56]} b6 {[%clk 00:27:58]} {[%emt 00:12:58]} 17. Qh4 {[%clk
00:32:46]} {[%emt 00:00:17]} Qe6 {[%clk 00:28:17]} {[%emt 00:00:11]} 18. Bf6
{[%clk 00:31:39]} {[%emt 00:01:37]} d5 {[%clk 00:27:30]} {[%emt 00:01:15]} 19.
h3 {[%clk 00:27:23]} {[%emt 00:04:48]} Qf5 {[%clk 00:18:09]} {[%emt 00:09:51]}
20. Nd4 {[%clk 00:22:34]} {[%emt 00:05:19]} Qh7 {[%clk 00:18:28]} {[%emt
00:00:11]} 21. Nc6 {[%clk 00:19:16]} {[%emt 00:03:48]} Rb7 {[%clk 00:17:01]}
{[%emt 00:01:57]} 22. Be7 {[%clk 00:15:00]} {[%emt 00:04:46]} Re8 {[%clk
00:17:01]} {[%emt 00:00:30]} 23. Bxc5 {[%clk 00:14:48]} {[%emt 00:00:42]} bxc5
{[%clk 00:17:20]} {[%emt 00:00:10]} 24. Nxa5 {[%clk 00:12:57]} {[%emt
00:02:22]} Rb2 {[%clk 00:16:14]} {[%emt 00:01:36]} 25. Nb3 {[%clk 00:09:56]}
{[%emt 00:03:31]} c4 {[%clk 00:15:00]} {[%emt 00:01:43]} 26. Nc5 {[%clk
00:10:22]} {[%emt 00:00:04]} Rb5 {[%clk 00:12:00]} {[%emt 00:03:31]} 27. Qd4
{[%clk 00:10:37]} {[%emt 00:00:15]} Qg6 {[%clk 00:11:48]} {[%emt 00:00:42]} 28.
e6 {[%clk 00:08:51]} {[%emt 00:02:17]} fxe6 {[%clk 00:11:22]} {[%emt 00:00:56]}
29. a4 {[%clk 00:08:55]} {[%emt 00:00:26]} Ra5 {[%clk 00:10:32]} {[%emt
00:01:19]} 30. Re5 {[%clk 00:08:58]} {[%emt 00:00:27]} Rf8 {[%clk 00:05:39]}
{[%emt 00:05:23]} 31. f4 {[%clk 00:03:50]} {[%emt 00:05:38]} Rf6 {[%clk
00:05:00]} {[%emt 00:01:08]} 32. Rf1 {[%clk 00:02:25]} {[%emt 00:01:56]} Qf7
{[%clk 00:03:42]} {[%emt 00:01:48]} 33. f5 {[%clk 00:02:51]} {[%emt 00:00:04]}
c6 {[%clk 00:02:12]} {[%emt 00:02:00]} 34. Ne4 {[%clk 00:02:14]} {[%emt
00:01:08]} c5 {[%clk 00:01:06]} {[%emt 00:01:36]} 35. Qd1 {[%clk 00:00:46]}
{[%emt 00:01:57]} Rxf5 {[%clk 00:00:56]} {[%emt 00:00:40]} 36. Rfxf5 {[%clk
00:00:57]} {[%emt 00:00:18]} exf5 {[%clk 00:01:09]} {[%emt 00:00:17]} 37. Nd6
{[%clk 00:01:18]} {[%emt 00:00:10]} Qd7 {[%clk 00:00:56]} {[%emt 00:00:43]} 38.
Qxd5+ {[%clk 00:01:08]} {[%emt 00:00:40]} Kh7 {[%clk 00:01:25]} {[%emt
00:00:01]} 39. Re8 {[%clk 00:01:14]} {[%emt 00:00:25]} Ra6 {[%clk 00:01:16]}
{[%emt 00:00:39]} 40. Qg8+ {[%clk 00:00:47]} {[%emt 00:00:55]} Kg6 {[%clk
00:01:42]} {[%emt 00:00:05]} 41. Nxc8 {[%clk 00:29:11]} {[%emt 00:02:06]} Qd1+
{[%clk 00:31:40]} {[%emt 00:00:32]} 42. Kh2 {[%emt 00:02:34]} Qf1 {[%clk
00:29:42]} 43. Re6+ {[%clk 00:28:02]} {[%emt 00:02:03]} Kh5 {[%clk 00:30:00]}
{[%emt 00:00:11]} 44. Qf7+ {[%clk 00:28:26]} {[%emt 00:00:06]} g6 {[%clk
00:30:23]} {[%emt 00:00:07]} 45. Qxg6+ {[%clk 00:28:52]} {[%emt 00:00:05]} Kh4
{[%clk 00:30:50]} {[%emt 00:00:04]} 46. g3# {[%clk 00:00:00]} {[%emt 00:00:04]}
1-0

[Event "Deloitte NK 2021"]
[Site "Hoogeveen, Netherlands"]
[Date "2021.10.15"]
[Round "1.5"]
[White "Swinkels, Robin"]
[Black "Maatman, Nick"]
[Result "1/2-1/2"]
[TimeControl "90min/40moves + 30min + 30sec/move"]
[WhiteElo "2509"]
[BlackElo "2368"]

1. d4 {[%clk 01:30:58]} {[%emt 00:00:01]} e6 {[%clk 01:30:51]} {[%emt
00:00:09]} 2. c4 {[%clk 01:31:13]} {[%emt 00:00:16]} d5 {[%clk 01:31:15]}
{[%emt 00:00:05]} 3. Nf3 {[%clk 01:31:40]} {[%emt 00:00:03]} Nf6 {[%clk
01:31:40]} {[%emt 00:00:05]} 4. g3 {[%clk 01:32:05]} {[%emt 00:00:05]} Bb4+
{[%clk 01:32:02]} {[%emt 00:00:08]} 5. Bd2 {[%clk 01:32:31]} {[%emt 00:00:04]}
Be7 {[%clk 01:32:29]} {[%emt 00:00:03]} 6. Bg2 {[%clk 01:32:55]} {[%emt
00:00:07]} O-O {[%clk 01:32:51]} {[%emt 00:00:07]} 7. O-O {[%clk 01:33:20]}
{[%emt 00:00:05]} c6 {[%clk 01:33:12]} {[%emt 00:00:09]} 8. Qc2 {[%clk
01:33:16]} {[%emt 00:00:34]} Nbd7 {[%clk 01:33:30]} {[%emt 00:00:13]} 9. Rc1
{[%clk 01:33:19]} {[%emt 00:00:26]} b6 {[%clk 01:33:00]} {[%emt 00:01:01]} 10.
a4 {[%clk 01:32:54]} {[%emt 00:00:55]} Ne4 {[%clk 01:05:22]} {[%emt 00:28:07]}
11. Be1 {[%clk 01:06:06]} {[%emt 00:27:18]} a5 {[%clk 00:57:34]} {[%emt
00:08:19]} 12. Nbd2 {[%clk 01:04:22]} {[%emt 00:02:14]} Nxd2 {[%clk 00:54:58]}
{[%emt 00:03:05]} 13. Bxd2 {[%clk 00:52:30]} {[%emt 00:12:22]} Ba6 {[%clk
00:53:41]} {[%emt 00:01:47]} 14. b3 {[%clk 00:52:42]} {[%emt 00:00:19]} Rc8
{[%clk 00:51:27]} {[%emt 00:02:44]} 15. e4 {[%clk 00:46:34]} {[%emt 00:06:39]}
c5 {[%clk 00:47:15]} {[%emt 00:04:41]} 16. exd5 {[%clk 00:35:50]} {[%emt
00:11:14]} exd5 {[%clk 00:47:32]} {[%emt 00:00:13]} 17. cxd5 {[%clk 00:30:55]}
{[%emt 00:05:25]} cxd4 {[%clk 00:35:42]} {[%emt 00:12:20]} 18. Qd1 {[%clk
00:30:13]} {[%emt 00:01:12]} Bf6 {[%clk 00:32:44]} {[%emt 00:03:27]} 19. Rxc8
{[%clk 00:23:29]} {[%emt 00:07:15]} Bxc8 {[%clk 00:30:41]} {[%emt 00:02:32]} 20.
b4 {[%clk 00:20:45]} {[%emt 00:03:15]} Bb7 {[%clk 00:28:06]} {[%emt 00:03:05]}
21. Qb3 {[%clk 00:20:40]} {[%emt 00:00:35]} Qa8 {[%clk 00:27:29]} {[%emt
00:01:07]} 22. Ne1 {[%clk 00:15:59]} {[%emt 00:05:11]} axb4 {[%clk 00:23:23]}
{[%emt 00:04:36]} 23. Bxb4 {[%clk 00:04:19]} {[%emt 00:12:10]} Nc5 {[%clk
00:22:33]} {[%emt 00:01:20]} 24. Bxc5 {[%clk 00:02:20]} {[%emt 00:02:29]} bxc5
{[%clk 00:22:56]} {[%emt 00:00:06]} 25. Nd3 {[%clk 00:02:21]} {[%emt 00:00:29]}
Rc8 {[%clk 00:04:36]} {[%emt 00:18:51]} 26. Rc1 {[%clk 00:02:48]} {[%emt
00:00:04]} c4 {[%clk 00:02:25]} {[%emt 00:02:40]} 27. Rxc4 {[%clk 00:03:14]}
{[%emt 00:00:04]} Rxc4 {[%clk 00:02:53]} {[%emt 00:00:03]} 28. Qxc4 {[%clk
00:03:40]} {[%emt 00:00:03]} Ba6 {[%clk 00:03:19]} {[%emt 00:00:04]} 29. Qc2
{[%clk 00:02:23]} {[%emt 00:01:48]} Bxd3 {[%clk 00:03:37]} {[%emt 00:00:10]} 30.
Qxd3 {[%clk 00:02:51]} {[%emt 00:00:03]} Qxa4 {[%clk 00:03:57]} {[%emt
00:00:09]} 31. Be4 {[%clk 00:02:56]} {[%emt 00:00:26]} g6 {[%clk 00:03:55]}
{[%emt 00:00:32]} 32. Kg2 {[%clk 00:03:24]} {[%emt 00:00:02]} Kg7 {[%clk
00:03:10]} {[%emt 00:01:14]} 33. h4 {[%clk 00:03:27]} {[%emt 00:00:28]} h5
{[%clk 00:02:56]} {[%emt 00:00:44]} 34. Qf3 {[%clk 00:03:54]} {[%emt 00:00:04]}
Qa6 {[%clk 00:02:28]} {[%emt 00:00:57]} 35. Bd3 {[%clk 00:04:00]} {[%emt
00:00:24]} Qd6 {[%clk 00:02:52]} {[%emt 00:00:04]} 36. Qe4 {[%clk 00:04:28]}
{[%emt 00:00:04]} Qe5 {[%clk 00:03:07]} {[%emt 00:00:15]} 37. Kf3 {[%clk
00:04:18]} {[%emt 00:00:40]} Qd6 {[%clk 00:02:34]} {[%emt 00:01:03]} 38. Kg2
{[%clk 00:04:45]} {[%emt 00:00:03]} Qe5 {[%clk 00:03:02]} {[%emt 00:00:02]} 39.
Qxe5 {[%clk 00:04:57]} {[%emt 00:00:19]} Bxe5 {[%clk 00:03:25]} {[%emt
00:00:07]} 40. Kf3 {[%clk 00:05:25]} {[%emt 00:00:01]} f5 {[%clk 00:03:24]}
{[%emt 00:00:31]} 1/2-1/2